[Event "Titled Tuesday Blitz April 11 Early 2023"]
[White "micke12a"]
[Black "Rom, Jasper"]
[BlackFideId "2023733"]
[WhiteElo "2324"]
[BlackElo "2233"]
[Result "0-1"]
[Round "04"]
[TimeControl "180+2"]
[Date "2023.04.11"]
[WhiteClock "0:00:13"]
[BlackClock "0:00:06"]

1. d4 {[%clk 0:02:55]}  d5 {[%clk 0:02:59]} 2. c4 {[%clk 0:02:55]}  e6 {[%clk 0:02:59]} 3. Nf3 {[%clk 0:02:54]}  c6 {[%clk 0:02:59]} 4. Nc3 {[%clk 0:02:52]}  dxc4 {[%clk 0:02:58]} 5. a4 {[%clk 0:02:52]}  Bb4 {[%clk 0:02:58]} 6. Qc2 {[%clk 0:02:49]}  b5 {[%clk 0:02:53]} 7. axb5 {[%clk 0:02:48]}  cxb5 {[%clk 0:02:53]} 8. Bd2 {[%clk 0:02:48]}  Qb6 {[%clk 0:02:49]} 9. e3 {[%clk 0:02:40]}  Bb7 {[%clk 0:02:46]} 10. b3 {[%clk 0:02:36]}  Bxc3 {[%clk 0:02:46]} 11. Qxc3 {[%clk 0:02:33]}  cxb3 {[%clk 0:02:44]} 12. Qxb3 {[%clk 0:02:33]}  a6 {[%clk 0:02:44]} 13. Ba5 {[%clk 0:02:27]}  Qc6 {[%clk 0:02:34]} 14. Ne5 {[%clk 0:02:24]}  Qd5 {[%clk 0:02:30]} 15. Qb2 {[%clk 0:02:15]}  f6 {[%clk 0:02:18]} 16. Nd3 {[%clk 0:02:12]}  Nd7 {[%clk 0:02:16]} 17. Nf4 {[%clk 0:02:06]}  Qc6 {[%clk 0:02:08]} 18. Rc1 {[%clk 0:01:57]}  Qd6 {[%clk 0:01:58]} 19. Bc7 {[%clk 0:01:13]}  Qe7 {[%clk 0:01:53]} 20. Ba5 {[%clk 0:00:59]}  Rc8 {[%clk 0:01:25]} 21. Rxc8+ {[%clk 0:00:57]}  Bxc8 {[%clk 0:01:24]} 22. Bb4 {[%clk 0:00:57]}  Qf7 {[%clk 0:01:16]} 23. Qc2 {[%clk 0:00:57]}  Ne7 {[%clk 0:01:10]} 24. Qc7 {[%clk 0:00:37]}  O-O {[%clk 0:00:59]} 25. Qd6 {[%clk 0:00:36]}  Nd5 {[%clk 0:00:34]} 26. Nxe6 {[%clk 0:00:33]}  Nxb4 {[%clk 0:00:30]} 27. Nxf8 {[%clk 0:00:33]}  Qxf8 {[%clk 0:00:31]} 28. Qxf8+ {[%clk 0:00:33]}  Kxf8 {[%clk 0:00:23]} 29. Kd2 {[%clk 0:00:33]}  Ke7 {[%clk 0:00:20]} 30. f3 {[%clk 0:00:34]}  Kd6 {[%clk 0:00:18]} 31. e4 {[%clk 0:00:35]}  Bb7 {[%clk 0:00:17]} 32. d5 {[%clk 0:00:35]}  Kc5 {[%clk 0:00:12]} 33. Be2 {[%clk 0:00:35]}  Ne5 {[%clk 0:00:12]} 34. Rc1+ {[%clk 0:00:35]}  Nc4+ {[%clk 0:00:12]} 35. Ke1 {[%clk 0:00:32]}  a5 {[%clk 0:00:10]} 36. d6 {[%clk 0:00:26]}  Kxd6 {[%clk 0:00:08]} 37. Bxc4 {[%clk 0:00:27]}  bxc4 {[%clk 0:00:08]} 38. Rxc4 {[%clk 0:00:28]}  Ba6 {[%clk 0:00:08]} 39. Rd4+ {[%clk 0:00:29]}  Kc5 {[%clk 0:00:07]} 40. Rd7 {[%clk 0:00:29]}  a4 {[%clk 0:00:07]} 41. Kd2 {[%clk 0:00:30]}  a3 {[%clk 0:00:06]} 42. Kc3 {[%clk 0:00:30]}  Bb5 {[%clk 0:00:04]} 43. Rc7+ {[%clk 0:00:29]}  Kb6 {[%clk 0:00:04]} 44. Rxg7 {[%clk 0:00:28]}  a2 {[%clk 0:00:04]} 45. Kb2 {[%clk 0:00:28]}  Bc4 {[%clk 0:00:05]} 46. Rd7 {[%clk 0:00:10]}  Nc2 {[%clk 0:00:04]} 47. Rd1 {[%clk 0:00:05]}  a1=Q+ {[%clk 0:00:04]} 48. Rxa1 {[%clk 0:00:06]}  Nxa1 {[%clk 0:00:05]} 49. Kxa1 {[%clk 0:00:07]}  Kc5 {[%clk 0:00:06]} 50. Kb2 {[%clk 0:00:08]}  Kd4 {[%clk 0:00:06]} 51. Kc2 {[%clk 0:00:08]}  Bf1 {[%clk 0:00:06]} 52. g3 {[%clk 0:00:06]}  Bg2 {[%clk 0:00:06]} 53. f4 {[%clk 0:00:05]}  Kxe4 {[%clk 0:00:06]} 54. Kd2 {[%clk 0:00:06]}  Bf3 {[%clk 0:00:06]} 55. Ke1 {[%clk 0:00:07]}  f5 {[%clk 0:00:06]} 56. Kf2 {[%clk 0:00:08]}  Bg4 {[%clk 0:00:07]} 57. Kg2 {[%clk 0:00:07]}  Ke3 {[%clk 0:00:07]} 58. h3 {[%clk 0:00:07]}  Bf3+ {[%clk 0:00:06]} 59. Kh2 {[%clk 0:00:08]}  Kf2 {[%clk 0:00:07]} 60. g4 {[%clk 0:00:07]}  fxg4 {[%clk 0:00:05]} 61. hxg4 {[%clk 0:00:08]}  Bxg4 {[%clk 0:00:06]} 62. f5 {[%clk 0:00:08]}  Kf3 {[%clk 0:00:05]} 63. Kh1 {[%clk 0:00:09]}  Bxf5 {[%clk 0:00:04]} 64. Kh2 {[%clk 0:00:09]}  Kg4 {[%clk 0:00:04]} 65. Kg2 {[%clk 0:00:09]}  h5 {[%clk 0:00:04]} 66. Kh2 {[%clk 0:00:10]}  h4 {[%clk 0:00:05]} 67. Kg2 {[%clk 0:00:11]}  h3+ {[%clk 0:00:05]} 68. Kh2 {[%clk 0:00:12]}  Kh4 {[%clk 0:00:05]} 69. Kh1 {[%clk 0:00:12]}  Be4+ {[%clk 0:00:05]} 70. Kh2 {[%clk 0:00:13]}  Kg4 {[%clk 0:00:05]} 71. Kg1 {[%clk 0:00:13]}  Kg3 {[%clk 0:00:06]} 0-1


[Site "https://www.chess.com"]

[Event "Titled Tuesday Blitz April 11 Early 2023"]
[White "Lopez, Henry"]
[Black "crosky"]
[WhiteFideId "5203830"]
[WhiteElo "2177"]
[BlackElo "2311"]
[Result "1-0"]
[Round "04"]
[TimeControl "180+2"]
[Date "2023.04.11"]
[WhiteClock "0:00:38"]
[BlackClock "0:00:24"]

1. d4 {[%clk 0:03:00]}  Nf6 {[%clk 0:03:00]} 2. Nf3 {[%clk 0:03:01]}  e6 {[%clk 0:02:59]} 3. c4 {[%clk 0:03:01]}  d5 {[%clk 0:02:59]} 4. Nc3 {[%clk 0:03:01]}  Bb4 {[%clk 0:02:59]} 5. cxd5 {[%clk 0:02:57]}  exd5 {[%clk 0:02:59]} 6. Bg5 {[%clk 0:02:57]}  h6 {[%clk 0:02:59]} 7. Bxf6 {[%clk 0:02:56]}  Qxf6 {[%clk 0:02:58]} 8. e3 {[%clk 0:02:56]}  c6 {[%clk 0:02:54]} 9. Bd3 {[%clk 0:02:52]}  Bf5 {[%clk 0:02:44]} 10. O-O {[%clk 0:02:50]}  Bxd3 {[%clk 0:02:44]} 11. Qxd3 {[%clk 0:02:50]}  Nd7 {[%clk 0:02:43]} 12. e4 {[%clk 0:02:49]}  Bxc3 {[%clk 0:02:14]} 13. bxc3 {[%clk 0:02:44]}  O-O {[%clk 0:02:04]} 14. e5 {[%clk 0:02:42]}  Qe6 {[%clk 0:01:59]} 15. Nd2 {[%clk 0:02:36]}  c5 {[%clk 0:01:56]} 16. f4 {[%clk 0:02:35]}  c4 {[%clk 0:01:40]} 17. Qc2 {[%clk 0:02:33]}  f5 {[%clk 0:01:41]} 18. a4 {[%clk 0:02:27]}  b6 {[%clk 0:01:37]} 19. Rfb1 {[%clk 0:02:22]}  Kh8 {[%clk 0:01:35]} 20. Qd1 {[%clk 0:02:08]}  Rg8 {[%clk 0:01:35]} 21. Qf3 {[%clk 0:02:06]}  Rab8 {[%clk 0:01:26]} 22. Rb5 {[%clk 0:02:04]}  g5 {[%clk 0:01:14]} 23. Qxd5 {[%clk 0:01:58]}  Qe7 {[%clk 0:01:10]} 24. Rf1 {[%clk 0:01:34]}  gxf4 {[%clk 0:01:05]} 25. Rxf4 {[%clk 0:01:28]}  Qg5 {[%clk 0:01:05]} 26. Rf2 {[%clk 0:01:28]}  Nf8 {[%clk 0:01:05]} 27. e6 {[%clk 0:01:17]}  Ng6 {[%clk 0:01:04]} 28. Qxf5 {[%clk 0:01:15]}  Qe3 {[%clk 0:01:02]} 29. Qf6+ {[%clk 0:01:05]}  Kh7 {[%clk 0:01:02]} 30. Rd5 {[%clk 0:00:46]}  Rb7 {[%clk 0:00:24]} 31. Rd7+ {[%clk 0:00:40]}  Rg7 {[%clk 0:00:24]} 32. Qxg7# {[%clk 0:00:38]} 1-0


[Site "https://www.chess.com"]

[Event "Titled Tuesday Blitz April 11 Early 2023"]
[White "Kula, Robert"]
[Black "Vovk, Orest"]
[WhiteFideId "1101218"]
[BlackFideId "14113490"]
[WhiteElo "2180"]
[BlackElo "2215"]
[Result "0-1"]
[Round "04"]
[TimeControl "180+2"]
[Date "2023.04.11"]
[WhiteClock "0:02:07"]
[BlackClock "0:01:35"]

1. d4 {[%clk 0:03:00]}  h6 {[%clk 0:02:43]} 2. c4 {[%clk 0:02:59]}  g5 {[%clk 0:02:42]} 3. Nc3 {[%clk 0:03:00]}  Bg7 {[%clk 0:02:42]} 4. e4 {[%clk 0:03:01]}  c5 {[%clk 0:02:42]} 5. d5 {[%clk 0:03:00]}  Bxc3+ {[%clk 0:02:41]} 6. bxc3 {[%clk 0:03:00]}  d6 {[%clk 0:02:42]} 7. h4 {[%clk 0:02:59]}  g4 {[%clk 0:02:41]} 8. Bd3 {[%clk 0:02:54]}  Nf6 {[%clk 0:02:37]} 9. f4 {[%clk 0:02:53]}  gxf3 {[%clk 0:02:36]} 10. Nxf3 {[%clk 0:02:51]}  Qa5 {[%clk 0:02:37]} 11. Bd2 {[%clk 0:02:50]}  Nbd7 {[%clk 0:02:34]} 12. O-O {[%clk 0:02:49]}  Ng4 {[%clk 0:02:32]} 13. Bc2 {[%clk 0:02:40]}  Nde5 {[%clk 0:02:32]} 14. Ba4+ {[%clk 0:02:37]}  Bd7 {[%clk 0:02:30]} 15. Bxd7+ {[%clk 0:02:35]}  Kxd7 {[%clk 0:02:31]} 16. Nxe5+ {[%clk 0:02:30]}  Nxe5 {[%clk 0:02:30]} 17. Qb3 {[%clk 0:02:31]}  b6 {[%clk 0:02:18]} 18. Bf4 {[%clk 0:02:30]}  f6 {[%clk 0:02:12]} 19. Bxe5 {[%clk 0:02:30]}  dxe5 {[%clk 0:02:12]} 20. Qb5+ {[%clk 0:02:28]}  Qxb5 {[%clk 0:02:11]} 21. cxb5 {[%clk 0:02:28]}  Rhg8 {[%clk 0:02:05]} 22. Rf5 {[%clk 0:02:12]}  Rg4 {[%clk 0:02:01]} 23. Rh5 {[%clk 0:02:12]}  Rag8 {[%clk 0:02:00]} 24. Kh1 {[%clk 0:02:07]}  Rxg2 {[%clk 0:01:59]} 25. Rxh6 {[%clk 0:02:08]}  Re2 {[%clk 0:01:50]} 26. a4 {[%clk 0:02:07]}  Rxe4 {[%clk 0:01:45]} 27. a5 {[%clk 0:02:07]}  Re3 {[%clk 0:01:36]} 28. axb6 {[%clk 0:02:07]}  Rh3# {[%clk 0:01:35]} 0-1


[Site "https://www.chess.com"]

[Event "Titled Tuesday Blitz April 11 Early 2023"]
[White "Santos Flores, Alberto"]
[Black "Kohler, Aran"]
[WhiteFideId "3601234"]
[BlackFideId "1002856"]
[WhiteElo "2235"]
[BlackElo "2301"]
[Result "1-0"]
[Round "04"]
[TimeControl "180+2"]
[Date "2023.04.11"]
[WhiteClock "0:01:47"]
[BlackClock "0:00:55"]

1. e4 {[%clk 0:03:00]}  c6 {[%clk 0:02:58]} 2. d4 {[%clk 0:03:00]}  d5 {[%clk 0:02:58]} 3. Nc3 {[%clk 0:03:00]}  dxe4 {[%clk 0:02:58]} 4. Nxe4 {[%clk 0:03:00]}  Bf5 {[%clk 0:02:58]} 5. Ng3 {[%clk 0:03:00]}  Bg6 {[%clk 0:02:58]} 6. h4 {[%clk 0:03:01]}  h6 {[%clk 0:02:58]} 7. Nf3 {[%clk 0:03:01]}  Nd7 {[%clk 0:02:58]} 8. h5 {[%clk 0:03:01]}  Bh7 {[%clk 0:02:58]} 9. Bd3 {[%clk 0:03:01]}  Ngf6 {[%clk 0:02:59]} 10. Bxh7 {[%clk 0:03:00]}  Nxh7 {[%clk 0:03:00]} 11. Bf4 {[%clk 0:02:57]}  Qa5+ {[%clk 0:02:58]} 12. Bd2 {[%clk 0:02:56]}  Qc7 {[%clk 0:02:57]} 13. Qe2 {[%clk 0:02:55]}  e6 {[%clk 0:02:56]} 14. Ne4 {[%clk 0:02:53]}  Be7 {[%clk 0:02:50]} 15. O-O-O {[%clk 0:02:53]}  Nhf6 {[%clk 0:02:31]} 16. Nxf6+ {[%clk 0:02:48]}  Bxf6 {[%clk 0:02:22]} 17. g3 {[%clk 0:02:47]}  c5 {[%clk 0:02:10]} 18. Bf4 {[%clk 0:02:42]}  Qb6 {[%clk 0:02:06]} 19. Ne5 {[%clk 0:02:39]}  Nxe5 {[%clk 0:01:46]} 20. Bxe5 {[%clk 0:02:34]}  cxd4 {[%clk 0:01:20]} 21. Bxf6 {[%clk 0:02:32]}  gxf6 {[%clk 0:01:21]} 22. Qc4 {[%clk 0:02:21]}  Rd8 {[%clk 0:01:17]} 23. Rh4 {[%clk 0:02:14]}  e5 {[%clk 0:01:12]} 24. f4 {[%clk 0:02:13]}  Qc6 {[%clk 0:01:00]} 25. Qe2 {[%clk 0:01:53]}  Rd5 {[%clk 0:00:56]} 26. fxe5 {[%clk 0:01:50]}  fxe5 {[%clk 0:00:55]} 27. Rhxd4 {[%clk 0:01:47]} 1-0


[Site "https://www.chess.com"]

[Event "Titled Tuesday Blitz April 11 Early 2023"]
[White "Toncheva, Nadya"]
[Black "Orujov2008"]
[WhiteFideId "2924056"]
[WhiteElo "2101"]
[BlackElo "2300"]
[Result "1-0"]
[Round "04"]
[TimeControl "180+2"]
[Date "2023.04.11"]
[WhiteClock "0:00:36"]
[BlackClock "0:00:01"]

1. e4 {[%clk 0:03:00]}  e5 {[%clk 0:03:00]} 2. Nf3 {[%clk 0:03:00]}  Nf6 {[%clk 0:03:00]} 3. Nxe5 {[%clk 0:03:00]}  Nxe4 {[%clk 0:03:00]} 4. Qe2 {[%clk 0:02:59]}  Qe7 {[%clk 0:03:01]} 5. Qxe4 {[%clk 0:02:46]}  d6 {[%clk 0:03:01]} 6. d4 {[%clk 0:02:42]}  dxe5 {[%clk 0:03:01]} 7. Qxe5 {[%clk 0:02:41]}  Qxe5+ {[%clk 0:03:01]} 8. dxe5 {[%clk 0:02:42]}  Nc6 {[%clk 0:03:01]} 9. Bf4 {[%clk 0:02:39]}  Bf5 {[%clk 0:02:55]} 10. Bd3 {[%clk 0:02:25]}  Bxd3 {[%clk 0:02:51]} 11. cxd3 {[%clk 0:02:26]}  O-O-O {[%clk 0:02:52]} 12. Nc3 {[%clk 0:02:04]}  Rxd3 {[%clk 0:02:48]} 13. Ke2 {[%clk 0:02:05]}  Rd8 {[%clk 0:02:46]} 14. Rhd1 {[%clk 0:02:04]}  Nd4+ {[%clk 0:02:34]} 15. Kf1 {[%clk 0:02:00]}  Bc5 {[%clk 0:02:33]} 16. Ne4 {[%clk 0:01:56]}  Be7 {[%clk 0:02:18]} 17. Rac1 {[%clk 0:01:56]}  Ne6 {[%clk 0:02:16]} 18. Be3 {[%clk 0:01:54]}  b6 {[%clk 0:02:00]} 19. f4 {[%clk 0:01:50]}  Rxd1+ {[%clk 0:01:28]} 20. Rxd1 {[%clk 0:01:49]}  Rd8 {[%clk 0:01:29]} 21. Rxd8+ {[%clk 0:01:43]}  Nxd8 {[%clk 0:01:30]} 22. Ke2 {[%clk 0:01:40]}  Kd7 {[%clk 0:01:28]} 23. Kf3 {[%clk 0:01:31]}  Ke6 {[%clk 0:01:26]} 24. Bd4 {[%clk 0:01:22]}  c5 {[%clk 0:01:00]} 25. Bc3 {[%clk 0:01:22]}  Nc6 {[%clk 0:00:59]} 26. g4 {[%clk 0:01:22]}  g6 {[%clk 0:00:57]} 27. Ng3 {[%clk 0:01:18]}  f5 {[%clk 0:00:25]} 28. gxf5+ {[%clk 0:01:07]}  gxf5 {[%clk 0:00:24]} 29. Nh5 {[%clk 0:01:07]}  Kf7 {[%clk 0:00:20]} 30. e6+ {[%clk 0:00:57]}  Kxe6 {[%clk 0:00:20]} 31. Ng7+ {[%clk 0:00:58]}  Kd5 {[%clk 0:00:16]} 32. Nxf5 {[%clk 0:00:58]}  Bf8 {[%clk 0:00:17]} 33. Ne3+ {[%clk 0:00:58]}  Ke6 {[%clk 0:00:15]} 34. Ke4 {[%clk 0:00:58]}  b5 {[%clk 0:00:14]} 35. f5+ {[%clk 0:00:58]}  Kf7 {[%clk 0:00:12]} 36. Kd5 {[%clk 0:00:53]}  Ne7+ {[%clk 0:00:07]} 37. Ke4 {[%clk 0:00:48]}  b4 {[%clk 0:00:07]} 38. Be1 {[%clk 0:00:48]}  Ng8 {[%clk 0:00:05]} 39. Bh4 {[%clk 0:00:42]}  Nf6+ {[%clk 0:00:04]} 40. Bxf6 {[%clk 0:00:41]}  Kxf6 {[%clk 0:00:05]} 41. Nd5+ {[%clk 0:00:39]}  Kg5 {[%clk 0:00:05]} 42. Ke5 {[%clk 0:00:38]}  c4 {[%clk 0:00:03]} 43. f6 {[%clk 0:00:36]}  Kg6 {[%clk 0:00:01]} 44. Ke6 {[%clk 0:00:36]} 1-0


[Site "https://www.chess.com"]

[Event "Titled Tuesday Blitz April 11 Early 2023"]
[White "babbilator"]
[Black "Rios Escobar, Adan"]
[BlackFideId "3403645"]
[WhiteElo "2267"]
[BlackElo "2463"]
[Result "0-1"]
[Round "04"]
[TimeControl "180+2"]
[Date "2023.04.11"]
[WhiteClock "0:00:06"]
[BlackClock "0:00:01"]

1. e4 {[%clk 0:03:00]}  c5 {[%clk 0:02:59]} 2. Nc3 {[%clk 0:03:00]}  d6 {[%clk 0:02:59]} 3. Nf3 {[%clk 0:02:57]}  Nf6 {[%clk 0:02:59]} 4. d4 {[%clk 0:02:44]}  cxd4 {[%clk 0:03:00]} 5. Nxd4 {[%clk 0:02:44]}  a6 {[%clk 0:02:58]} 6. f4 {[%clk 0:02:42]}  e5 {[%clk 0:02:51]} 7. Nf3 {[%clk 0:02:42]}  Qc7 {[%clk 0:02:51]} 8. Bd3 {[%clk 0:02:37]}  Be7 {[%clk 0:02:49]} 9. a4 {[%clk 0:02:35]}  O-O {[%clk 0:02:44]} 10. O-O {[%clk 0:02:33]}  Nc6 {[%clk 0:02:42]} 11. Kh1 {[%clk 0:02:30]}  Bg4 {[%clk 0:02:16]} 12. Qe1 {[%clk 0:02:26]}  Nb4 {[%clk 0:02:05]} 13. Qg3 {[%clk 0:02:10]}  Be6 {[%clk 0:00:56]} 14. f5 {[%clk 0:01:57]}  Bc4 {[%clk 0:00:56]} 15. Bh6 {[%clk 0:01:51]}  Ne8 {[%clk 0:00:50]} 16. Bxc4 {[%clk 0:01:19]}  Qxc4 {[%clk 0:00:48]} 17. Nd2 {[%clk 0:01:07]}  Qc7 {[%clk 0:00:22]} 18. f6 {[%clk 0:01:03]}  Bxf6 {[%clk 0:00:22]} 19. Rxf6 {[%clk 0:01:03]}  Kh8 {[%clk 0:00:23]} 20. Bxg7+ {[%clk 0:00:57]}  Nxg7 {[%clk 0:00:23]} 21. Raf1 {[%clk 0:00:55]}  Rad8 {[%clk 0:00:18]} 22. Rh6 {[%clk 0:00:33]}  f5 {[%clk 0:00:11]} 23. Qh3 {[%clk 0:00:32]}  Kg8 {[%clk 0:00:03]} 24. Rxh7 {[%clk 0:00:27]}  d5 {[%clk 0:00:03]} 25. exf5 {[%clk 0:00:14]}  Qe7 {[%clk 0:00:01]} 26. Qg4 {[%clk 0:00:06]}  Qf6 {[%clk 0:00:01]} 0-1


[Site "https://www.chess.com"]

[Event "Titled Tuesday Blitz April 11 Early 2023"]
[White "Jimenez Jimenez, Leandro"]
[Black "Lauridsen, Jesper Morch"]
[WhiteFideId "6415253"]
[BlackFideId "1401890"]
[WhiteElo "2263"]
[BlackElo "2257"]
[Result "0-1"]
[Round "04"]
[TimeControl "180+2"]
[Date "2023.04.11"]
[WhiteClock "0:00:17"]
[BlackClock "0:01:26"]

1. d4 {[%clk 0:03:00]}  d5 {[%clk 0:02:43]} 2. c4 {[%clk 0:03:00]}  e6 {[%clk 0:02:43]} 3. g3 {[%clk 0:02:58]}  c5 {[%clk 0:02:42]} 4. cxd5 {[%clk 0:02:55]}  exd5 {[%clk 0:02:41]} 5. Nf3 {[%clk 0:02:51]}  Nf6 {[%clk 0:02:41]} 6. Bg2 {[%clk 0:02:52]}  Nc6 {[%clk 0:02:39]} 7. O-O {[%clk 0:02:52]}  Be7 {[%clk 0:02:32]} 8. Nc3 {[%clk 0:02:52]}  O-O {[%clk 0:02:26]} 9. Bg5 {[%clk 0:02:51]}  cxd4 {[%clk 0:02:21]} 10. Nxd4 {[%clk 0:02:51]}  h6 {[%clk 0:02:21]} 11. Bf4 {[%clk 0:01:54]}  Bg4 {[%clk 0:02:18]} 12. h3 {[%clk 0:01:50]}  Bh5 {[%clk 0:02:16]} 13. Nf5 {[%clk 0:01:49]}  Re8 {[%clk 0:02:02]} 14. Nxd5 {[%clk 0:01:30]}  Nxd5 {[%clk 0:01:55]} 15. Bxd5 {[%clk 0:01:30]}  Bf6 {[%clk 0:01:47]} 16. g4 {[%clk 0:01:30]}  Bg6 {[%clk 0:01:46]} 17. Nd6 {[%clk 0:00:55]}  Re7 {[%clk 0:01:36]} 18. Qb3 {[%clk 0:00:54]}  Nd4 {[%clk 0:01:34]} 19. Qc4 {[%clk 0:00:42]}  Nxe2+ {[%clk 0:01:31]} 20. Kh1 {[%clk 0:00:35]}  Nxf4 {[%clk 0:01:31]} 21. Qxf4 {[%clk 0:00:18]}  Be5 {[%clk 0:01:31]} 22. Nxf7 {[%clk 0:00:17]}  Qxd5+ {[%clk 0:01:26]} 0-1


[Site "https://www.chess.com"]

[Event "Titled Tuesday Blitz April 11 Early 2023"]
[White "Yosha_Iglesias"]
[Black "mjelcic"]
[WhiteElo "2454"]
[BlackElo "2246"]
[Result "1-0"]
[Round "04"]
[TimeControl "180+2"]
[Date "2023.04.11"]
[WhiteClock "0:00:49"]
[BlackClock "0:00:14"]

1. d4 {[%clk 0:03:00]}  d5 {[%clk 0:02:57]} 2. Nf3 {[%clk 0:03:00]}  c6 {[%clk 0:02:56]} 3. e3 {[%clk 0:02:55]}  Nf6 {[%clk 0:02:56]} 4. c4 {[%clk 0:02:53]}  e6 {[%clk 0:02:50]} 5. Nbd2 {[%clk 0:02:52]}  Nbd7 {[%clk 0:02:49]} 6. Bd3 {[%clk 0:02:53]}  Bd6 {[%clk 0:02:48]} 7. O-O {[%clk 0:02:52]}  b6 {[%clk 0:02:46]} 8. Re1 {[%clk 0:02:48]}  O-O {[%clk 0:02:44]} 9. e4 {[%clk 0:02:49]}  dxe4 {[%clk 0:02:36]} 10. Nxe4 {[%clk 0:02:49]}  Nxe4 {[%clk 0:02:36]} 11. Rxe4 {[%clk 0:02:49]}  Nf6 {[%clk 0:02:33]} 12. Rh4 {[%clk 0:02:49]}  g6 {[%clk 0:02:17]} 13. Bg5 {[%clk 0:02:06]}  Be7 {[%clk 0:02:16]} 14. Qd2 {[%clk 0:02:05]}  Bb7 {[%clk 0:02:13]} 15. Rh3 {[%clk 0:02:03]}  Re8 {[%clk 0:02:08]} 16. Bxf6 {[%clk 0:01:53]}  Bxf6 {[%clk 0:02:08]} 17. Qh6 {[%clk 0:01:53]}  c5 {[%clk 0:01:43]} 18. Qxh7+ {[%clk 0:01:47]}  Kf8 {[%clk 0:01:43]} 19. Ne5 {[%clk 0:01:27]}  Qe7 {[%clk 0:00:51]} 20. Bxg6 {[%clk 0:00:53]}  Bg7 {[%clk 0:00:16]} 21. Bxf7 {[%clk 0:00:50]}  cxd4 {[%clk 0:00:14]} 22. Qg8# {[%clk 0:00:49]} 1-0


[Site "https://www.chess.com"]

[Event "Titled Tuesday Blitz April 11 Early 2023"]
[White "Baches Garcia, Guillermo"]
[Black "Schuh, Karsten"]
[WhiteFideId "2209764"]
[BlackFideId "4637950"]
[WhiteElo "2453"]
[BlackElo "2138"]
[Result "1-0"]
[Round "04"]
[TimeControl "180+2"]
[Date "2023.04.11"]
[WhiteClock "0:00:07"]
[BlackClock "0:00:05"]

1. e4 {[%clk 0:03:00]}  c5 {[%clk 0:02:59]} 2. Nf3 {[%clk 0:03:00]}  Nc6 {[%clk 0:02:59]} 3. d4 {[%clk 0:03:01]}  cxd4 {[%clk 0:02:59]} 4. Nxd4 {[%clk 0:03:02]}  Qc7 {[%clk 0:02:59]} 5. Nc3 {[%clk 0:02:59]}  e6 {[%clk 0:03:00]} 6. Be3 {[%clk 0:02:59]}  a6 {[%clk 0:02:59]} 7. g4 {[%clk 0:02:59]}  d6 {[%clk 0:02:51]} 8. Nxc6 {[%clk 0:02:54]}  bxc6 {[%clk 0:02:51]} 9. Qf3 {[%clk 0:02:53]}  Bb7 {[%clk 0:02:44]} 10. O-O-O {[%clk 0:02:52]}  Nf6 {[%clk 0:02:40]} 11. g5 {[%clk 0:02:47]}  Nd7 {[%clk 0:02:40]} 12. h4 {[%clk 0:02:46]}  c5 {[%clk 0:02:33]} 13. h5 {[%clk 0:02:39]}  Ne5 {[%clk 0:02:28]} 14. Qg3 {[%clk 0:02:28]}  O-O-O {[%clk 0:02:23]} 15. f4 {[%clk 0:02:20]}  Nc6 {[%clk 0:02:22]} 16. Bg2 {[%clk 0:02:02]}  Be7 {[%clk 0:02:18]} 17. g6 {[%clk 0:01:59]}  hxg6 {[%clk 0:02:06]} 18. hxg6 {[%clk 0:01:59]}  Rxh1 {[%clk 0:02:02]} 19. Rxh1 {[%clk 0:01:58]}  fxg6 {[%clk 0:02:01]} 20. Bh3 {[%clk 0:01:54]}  Nd4 {[%clk 0:01:55]} 21. Bxd4 {[%clk 0:01:47]}  cxd4 {[%clk 0:01:54]} 22. Bxe6+ {[%clk 0:01:47]}  Kb8 {[%clk 0:01:54]} 23. Nd5 {[%clk 0:01:47]}  Bxd5 {[%clk 0:01:51]} 24. Bxd5 {[%clk 0:01:42]}  Bf6 {[%clk 0:01:46]} 25. Rh3 {[%clk 0:01:18]}  Ka7 {[%clk 0:01:45]} 26. Qf2 {[%clk 0:01:13]}  Rb8 {[%clk 0:01:15]} 27. Kb1 {[%clk 0:01:10]}  Qc5 {[%clk 0:01:08]} 28. Rd3 {[%clk 0:00:53]}  Rb6 {[%clk 0:01:02]} 29. Qd2 {[%clk 0:00:42]}  Qb5 {[%clk 0:00:52]} 30. Qc1 {[%clk 0:00:39]}  Qc5 {[%clk 0:00:49]} 31. a3 {[%clk 0:00:37]}  Rb8 {[%clk 0:00:43]} 32. Ka2 {[%clk 0:00:37]}  Rb5 {[%clk 0:00:39]} 33. Qd2 {[%clk 0:00:25]}  Qb6 {[%clk 0:00:34]} 34. b3 {[%clk 0:00:20]}  Qc5 {[%clk 0:00:33]} 35. Bc4 {[%clk 0:00:19]}  Rb8 {[%clk 0:00:30]} 36. Rg3 {[%clk 0:00:16]}  Rc8 {[%clk 0:00:17]} 37. Qd3 {[%clk 0:00:16]}  Rc6 {[%clk 0:00:16]} 38. Rxg6 {[%clk 0:00:15]}  Rb6 {[%clk 0:00:16]} 39. Rg2 {[%clk 0:00:13]}  Rb7 {[%clk 0:00:16]} 40. Re2 {[%clk 0:00:13]}  Rb6 {[%clk 0:00:16]} 41. Rh2 {[%clk 0:00:13]}  Rb7 {[%clk 0:00:15]} 42. Rf2 {[%clk 0:00:13]}  Rb6 {[%clk 0:00:16]} 43. Rd2 {[%clk 0:00:13]}  Rb8 {[%clk 0:00:16]} 44. b4 {[%clk 0:00:13]}  Qc6 {[%clk 0:00:14]} 45. Bb3 {[%clk 0:00:13]}  Rc8 {[%clk 0:00:14]} 46. Re2 {[%clk 0:00:12]}  Qc7 {[%clk 0:00:14]} 47. e5 {[%clk 0:00:12]}  dxe5 {[%clk 0:00:14]} 48. fxe5 {[%clk 0:00:12]}  Bxe5 {[%clk 0:00:14]} 49. Qe4 {[%clk 0:00:12]}  Bf6 {[%clk 0:00:14]} 50. Qd3 {[%clk 0:00:12]}  Qc6 {[%clk 0:00:13]} 51. Qf5 {[%clk 0:00:11]}  Rc7 {[%clk 0:00:13]} 52. Re6 {[%clk 0:00:11]}  Qc3 {[%clk 0:00:12]} 53. Qd3 {[%clk 0:00:11]}  Rc6 {[%clk 0:00:11]} 54. Rxc6 {[%clk 0:00:10]}  Qxc6 {[%clk 0:00:10]} 55. Qe2 {[%clk 0:00:10]}  Qd6 {[%clk 0:00:10]} 56. Bc4 {[%clk 0:00:10]}  d3 {[%clk 0:00:10]} 57. Qxd3 {[%clk 0:00:09]}  Qe5 {[%clk 0:00:10]} 58. Kb3 {[%clk 0:00:07]}  Qb2+ {[%clk 0:00:09]} 59. Ka4 {[%clk 0:00:08]}  Qe5 {[%clk 0:00:10]} 60. Qd7+ {[%clk 0:00:08]}  Kb8 {[%clk 0:00:10]} 61. Qc6 {[%clk 0:00:07]}  Qc7 {[%clk 0:00:09]} 62. Qxa6 {[%clk 0:00:06]}  Qd7+ {[%clk 0:00:09]} 63. Qb5+ {[%clk 0:00:06]}  Qxb5+ {[%clk 0:00:09]} 64. Kxb5 {[%clk 0:00:07]}  Kb7 {[%clk 0:00:09]} 65. Be2 {[%clk 0:00:07]}  g5 {[%clk 0:00:09]} 66. c4 {[%clk 0:00:08]}  Kc7 {[%clk 0:00:09]} 67. Bf3 {[%clk 0:00:08]}  Bb2 {[%clk 0:00:09]} 68. a4 {[%clk 0:00:08]}  Bd4 {[%clk 0:00:08]} 69. a5 {[%clk 0:00:09]}  Be3 {[%clk 0:00:08]} 70. c5 {[%clk 0:00:09]}  Kb8 {[%clk 0:00:07]} 71. a6 {[%clk 0:00:09]}  Ka7 {[%clk 0:00:06]} 72. Bb7 {[%clk 0:00:07]}  Bf4 {[%clk 0:00:04]} 73. Kc6 {[%clk 0:00:07]}  g4 {[%clk 0:00:05]} 74. b5 {[%clk 0:00:07]} 1-0


[Site "https://www.chess.com"]